[Event "Betsys MČR v online bleskovém šachu 2021"]
[Site "Chess.com"]
[Date "2021.04.17"]
[Round "8"]
[White "g4g5g4g5"]
[Black "Ehlundi"]
[Result "1-0"]
[WhiteElo "2003"]
[BlackElo "1755"]
[TimeControl "180+1"]
[EndTime "10:19:54 PDT"]
[Termination "Uživatel g4g5g4g5 zvítězil po vzdání soupeře"]

1. e4 {[%clk 0:03:00.9]} 1... c5 {[%clk 0:02:59.7]} 2. Nf3 {[%clk 0:03:00.9]}
2... Nc6 {[%clk 0:03:00.3]} 3. g3 {[%clk 0:03:00.9]} 3... e6 {[%clk 0:02:59.4]}
4. d3 {[%clk 0:03:00.5]} 4... Nf6 {[%clk 0:02:59.6]} 5. Bg2 {[%clk 0:02:59.9]}
5... Be7 {[%clk 0:03:00]} 6. O-O {[%clk 0:02:59.5]} 6... O-O {[%clk 0:03:00.2]}
7. Re1 {[%clk 0:02:59.2]} 7... d6 {[%clk 0:03:00.5]} 8. c3 {[%clk 0:02:58.7]}
8... e5 {[%clk 0:03:00.7]} 9. h3 {[%clk 0:02:58.1]} 9... h6 {[%clk 0:02:59.6]}
10. Na3 {[%clk 0:02:58]} 10... a6 {[%clk 0:02:57.9]} 11. Nc2 {[%clk 0:02:57.8]}
11... b5 {[%clk 0:02:57.9]} 12. d4 {[%clk 0:02:57.8]} 12... c4 {[%clk
0:02:50.5]} 13. d5 {[%clk 0:02:57]} 13... Nb8 {[%clk 0:02:47]} 14. a4 {[%clk
0:02:56.9]} 14... Nbd7 {[%clk 0:02:45.1]} 15. axb5 {[%clk 0:02:55.9]} 15... a5
{[%clk 0:02:44.4]} 16. Na3 {[%clk 0:02:54]} 16... Nb6 {[%clk 0:02:43.5]} 17. Nd2
{[%clk 0:02:49]} 17... Bd7 {[%clk 0:02:42.5]} 18. Bf1 {[%clk 0:02:41.6]} 18...
Qc8 {[%clk 0:02:41.7]} 19. Kh2 {[%clk 0:02:40.6]} 19... g5 {[%clk 0:02:30.3]}
20. Ndxc4 {[%clk 0:02:28.6]} 20... Nxc4 {[%clk 0:02:27.9]} 21. Nxc4 {[%clk
0:02:28.6]} 21... Bxb5 {[%clk 0:02:27.1]} 22. Nb6 {[%clk 0:02:27.9]} 22... Qb7
{[%clk 0:02:22.1]} 23. Nxa8 {[%clk 0:02:26.7]} 23... Bxf1 {[%clk 0:02:21.9]} 24.
Rxf1 {[%clk 0:02:23.9]} 24... Rxa8 {[%clk 0:02:18.5]} 25. Qe2 {[%clk 0:02:22.9]}
25... Qd7 {[%clk 0:02:12.3]} 26. f3 {[%clk 0:02:21.9]} 26... Nh5 {[%clk
0:02:05.5]} 27. Be3 {[%clk 0:02:02.6]} 27... f5 {[%clk 0:01:56.7]} 28. exf5
{[%clk 0:02:00.1]} 28... Qxf5 {[%clk 0:01:56.1]} 29. g4 {[%clk 0:01:59.8]} 29...
Nf4 {[%clk 0:01:49.7]} 30. gxf5 {[%clk 0:01:44.6]} 30... Nxe2 {[%clk 0:01:49.3]}
31. Rfe1 {[%clk 0:01:32.3]} 31... Nf4 {[%clk 0:01:46.7]} 32. Bxf4 {[%clk
0:01:32]} 32... gxf4 {[%clk 0:01:46.8]} 33. Rg1+ {[%clk 0:01:30.5]} 33... Kf7
{[%clk 0:01:46.7]} 34. Rg6 {[%clk 0:01:30.4]} 34... h5 {[%clk 0:01:37.2]} 35.
Rag1 {[%clk 0:01:22.1]} 35... Rf8 {[%clk 0:01:32.8]} 36. Rg7+ {[%clk 0:01:16.8]}
36... Ke8 {[%clk 0:01:31.2]} 37. Ra1 {[%clk 0:01:15.6]} 37... Bd8 {[%clk
0:01:19.5]} 38. b4 {[%clk 0:01:10]} 38... axb4 {[%clk 0:01:16.2]} 39. cxb4
{[%clk 0:01:10.2]} 39... Rxf5 {[%clk 0:01:16.6]} 40. Ra8 {[%clk 0:01:04.8]}
40... Rf8 {[%clk 0:01:12.7]} 41. b5 {[%clk 0:01:04.2]} 41... Rf7 {[%clk
0:01:02.7]} 42. Rxf7 {[%clk 0:01:00.5]} 1-0

[Event "Betsys MČR v online bleskovém šachu 2021"]
[Site "Chess.com"]
[Date "2021.04.17"]
[Round "8"]
[White "Federer302"]
[Black "Vitana"]
[Result "0-1"]
[WhiteElo "1589"]
[BlackElo "1826"]
[TimeControl "180+1"]
[EndTime "10:19:56 PDT"]
[Termination "Uživatel Vitana zvítězil na čas"]

1. e4 {[%clk 0:03:00.9]} 1... e6 {[%clk 0:03:00.1]} 2. d4 {[%clk 0:02:58.6]}
2... d5 {[%clk 0:02:59.9]} 3. e5 {[%clk 0:02:58.7]} 3... c5 {[%clk 0:02:59.6]}
4. c3 {[%clk 0:02:58.7]} 4... Nc6 {[%clk 0:03:00]} 5. Nf3 {[%clk 0:02:57.9]}
5... Bd7 {[%clk 0:03:00.5]} 6. a3 {[%clk 0:02:54.1]} 6... Qb6 {[%clk 0:03:00.8]}
7. b4 {[%clk 0:02:33.4]} 7... cxd4 {[%clk 0:02:59.4]} 8. cxd4 {[%clk 0:02:32.1]}
8... Nge7 {[%clk 0:02:59.2]} 9. Be3 {[%clk 0:02:18.3]} 9... Nf5 {[%clk
0:02:57.6]} 10. Bd3 {[%clk 0:02:15.8]} 10... Nxe3 {[%clk 0:02:56.7]} 11. fxe3
{[%clk 0:02:16.3]} 11... Be7 {[%clk 0:02:56]} 12. O-O {[%clk 0:02:16.6]} 12...
O-O {[%clk 0:02:54.5]} 13. Nc3 {[%clk 0:01:48.4]} 13... f5 {[%clk 0:02:47]} 14.
exf6 {[%clk 0:01:47.3]} 14... Bxf6 {[%clk 0:02:46.2]} 15. h3 {[%clk 0:01:32.2]}
15... Rae8 {[%clk 0:02:41.3]} 16. Nh2 {[%clk 0:01:31.4]} 16... Bxd4 {[%clk
0:02:26.2]} 17. Rxf8+ {[%clk 0:01:18.7]} 17... Rxf8 {[%clk 0:02:25.5]} 18. exd4
{[%clk 0:00:46.9]} 18... Qxd4+ {[%clk 0:02:23.9]} 19. Kh1 {[%clk 0:00:46.9]}
19... Qxc3 {[%clk 0:02:21.3]} 20. b5 {[%clk 0:00:19.9]} 20... Nd8 {[%clk
0:02:11.5]} 21. Rc1 {[%clk 0:00:19.1]} 21... Qf6 {[%clk 0:02:01.6]} 22. Qh5
{[%clk 0:00:16.8]} 22... g6 {[%clk 0:01:58.9]} 23. Qe2 {[%clk 0:00:15.9]} 23...
e5 {[%clk 0:01:54]} 24. Ng4 {[%clk 0:00:15.8]} 24... Qg7 {[%clk 0:01:46.3]} 25.
Nxe5 {[%clk 0:00:11.5]} 25... Re8 {[%clk 0:01:42.4]} 26. Re1 {[%clk 0:00:09.5]}
26... Nf7 {[%clk 0:01:39.1]} 27. Nxd7 {[%clk 0:00:02.4]} 27... Rxe2 {[%clk
0:01:38]} 28. Rxe2 {[%clk 0:00:02.7]} 28... Nd6 {[%clk 0:01:37.3]} 29. Ne5
{[%clk 0:00:01.4]} 29... Ne4 {[%clk 0:01:29]} 0-1

[Event "Betsys MČR v online bleskovém šachu 2021"]
[Site "Chess.com"]
[Date "2021.04.17"]
[Round "8"]
[White "Lukuluss88"]
[Black "bezzuton"]
[Result "0-1"]
[WhiteElo "1941"]
[BlackElo "1545"]
[TimeControl "180+1"]
[EndTime "10:19:58 PDT"]
[Termination "Uživatel bezzuton zvítězil po vzdání soupeře"]

1. c4 {[%clk 0:03:00.9]} 1... c5 {[%clk 0:02:57.7]} 2. Nc3 {[%clk 0:03:00.1]}
2... e6 {[%clk 0:02:56.2]} 3. g3 {[%clk 0:02:59.7]} 3... d5 {[%clk 0:02:52.7]}
4. cxd5 {[%clk 0:02:59.7]} 4... exd5 {[%clk 0:02:52.1]} 5. d4 {[%clk 0:02:59.8]}
5... cxd4 {[%clk 0:02:47.2]} 6. Qxd4 {[%clk 0:02:55.3]} 6... Nf6 {[%clk
0:02:41.8]} 7. Bg5 {[%clk 0:02:31.9]} 7... Nc6 {[%clk 0:02:36.5]} 8. Bxf6 {[%clk
0:02:21.4]} 8... Nxd4 {[%clk 0:02:35.8]} 9. Bxd8 {[%clk 0:02:20.6]} 9... Nc2+
{[%clk 0:02:24.4]} 10. Kd2 {[%clk 0:02:18.6]} 10... Nxa1 {[%clk 0:02:23.8]} 11.
Bg5 {[%clk 0:02:14.5]} 11... Bf5 {[%clk 0:02:22.6]} 12. f3 {[%clk 0:02:06.6]}
12... Bb4 {[%clk 0:02:14.9]} 13. e3 {[%clk 0:01:36.6]} 13... Nc2 {[%clk
0:02:07.8]} 14. Bb5+ {[%clk 0:01:29.8]} 14... Kf8 {[%clk 0:02:04.2]} 15. Ne2
{[%clk 0:01:21.7]} 15... f6 {[%clk 0:02:01.4]} 16. Bf4 {[%clk 0:01:14]} 16...
Rd8 {[%clk 0:01:56.6]} 17. g4 {[%clk 0:01:08.7]} 17... Bg6 {[%clk 0:01:56]} 18.
h4 {[%clk 0:01:08.5]} 18... d4 {[%clk 0:01:54.9]} 19. exd4 {[%clk 0:00:53.6]}
19... Nxd4 {[%clk 0:01:50.3]} 20. Nxd4 {[%clk 0:00:52.6]} 20... Rxd4+ {[%clk
0:01:50.2]} 21. Ke3 {[%clk 0:00:52.7]} 21... Bc5 {[%clk 0:01:49]} 22. Ke2 {[%clk
0:00:23.4]} 22... Rxf4 {[%clk 0:01:42.5]} 23. h5 {[%clk 0:00:22.9]} 23... Bf7
{[%clk 0:01:38.8]} 24. Rd1 {[%clk 0:00:20]} 24... Rd4 {[%clk 0:01:37.6]} 25. Bd3
{[%clk 0:00:13.9]} 25... Ke7 {[%clk 0:01:35.2]} 26. Ne4 {[%clk 0:00:13.5]} 26...
Bb6 {[%clk 0:01:32.1]} 27. b4 {[%clk 0:00:13.2]} 27... Rhd8 {[%clk 0:01:27.8]}
28. a3 {[%clk 0:00:12.7]} 28... Rxd3 {[%clk 0:01:23.9]} 29. Rxd3 {[%clk
0:00:12.1]} 29... Bc4 {[%clk 0:01:23.8]} 0-1

[Event "Betsys MČR v online bleskovém šachu 2021"]
[Site "Chess.com"]
[Date "2021.04.17"]
[Round "8"]
[White "Cenisuh"]
[Black "zarathutra"]
[Result "1-0"]
[WhiteElo "1615"]
[BlackElo "1800"]
[TimeControl "180+1"]
[EndTime "10:19:58 PDT"]
[Termination "Uživatel Cenisuh zvítězil po vzdání soupeře"]

1. Nf3 {[%clk 0:02:58.6]} 1... Nf6 {[%clk 0:02:59.6]} 2. c4 {[%clk 0:02:58.5]}
2... e6 {[%clk 0:02:57.6]} 3. g3 {[%clk 0:02:58.6]} 3... b6 {[%clk 0:02:56.9]}
4. Bg2 {[%clk 0:02:58.7]} 4... Bb7 {[%clk 0:02:57.2]} 5. O-O {[%clk 0:02:59.3]}
5... Be7 {[%clk 0:02:57.6]} 6. Nc3 {[%clk 0:02:59.6]} 6... O-O {[%clk
0:02:57.5]} 7. b3 {[%clk 0:02:57.9]} 7... c5 {[%clk 0:02:53]} 8. Bb2 {[%clk
0:02:57.7]} 8... d5 {[%clk 0:02:46.2]} 9. cxd5 {[%clk 0:02:51.2]} 9... exd5
{[%clk 0:02:46.3]} 10. d4 {[%clk 0:02:48]} 10... Nc6 {[%clk 0:02:29.5]} 11. e3
{[%clk 0:02:41.8]} 11... c4 {[%clk 0:02:25]} 12. h3 {[%clk 0:02:27.6]} 12... Na5
{[%clk 0:02:23.5]} 13. Ne5 {[%clk 0:02:17.2]} 13... Bd6 {[%clk 0:02:16.3]} 14.
bxc4 {[%clk 0:02:15.1]} 14... Bxe5 {[%clk 0:02:07.9]} 15. dxe5 {[%clk
0:02:13.9]} 15... Nxc4 {[%clk 0:02:03.8]} 16. exf6 {[%clk 0:01:59.3]} 16... Nxb2
{[%clk 0:02:03.3]} 17. Qc2 {[%clk 0:01:52.8]} 17... Nc4 {[%clk 0:01:38.3]} 18.
fxg7 {[%clk 0:01:52.4]} 18... Re8 {[%clk 0:01:35.9]} 19. Rfd1 {[%clk 0:01:42.2]}
19... Qf6 {[%clk 0:01:18.7]} 20. Nxd5 {[%clk 0:01:31]} 20... Bxd5 {[%clk
0:01:08.5]} 21. Bxd5 {[%clk 0:01:21.7]} 21... Ne5 {[%clk 0:01:08.2]} 22. Bxa8
{[%clk 0:01:04.8]} 22... Rxa8 {[%clk 0:01:05.8]} 23. Qe4 {[%clk 0:00:51.4]}
23... Nf3+ {[%clk 0:00:57.4]} 24. Kg2 {[%clk 0:00:44.4]} 24... Nd2 {[%clk
0:00:55.2]} 25. Qxa8+ {[%clk 0:00:43.1]} 25... Kxg7 {[%clk 0:00:54.7]} 26. Rxd2
{[%clk 0:00:32.6]} 26... Qxa1 {[%clk 0:00:53.8]} 27. Qd5 {[%clk 0:00:33.1]}
27... Qc3 {[%clk 0:00:50.7]} 28. Qd4+ {[%clk 0:00:32.8]} 1-0

[Event "Betsys MČR v online bleskovém šachu 2021"]
[Site "Chess.com"]
[Date "2021.04.17"]
[Round "8"]
[White "milanpetras"]
[Black "florenc1330"]
[Result "0-1"]
[WhiteElo "1843"]
[BlackElo "2097"]
[TimeControl "180+1"]
[EndTime "10:20:00 PDT"]
[Termination "Uživatel florenc1330 zvítězil po vzdání soupeře"]

1. e4 {[%clk 0:03:00.9]} 1... d5 {[%clk 0:02:58.9]} 2. Nc3 {[%clk 0:02:58.8]}
2... d4 {[%clk 0:02:56.9]} 3. Nce2 {[%clk 0:02:57.8]} 3... d3 {[%clk 0:02:56.9]}
4. cxd3 {[%clk 0:02:55.3]} 4... Nc6 {[%clk 0:02:56.9]} 5. Nc3 {[%clk 0:02:56.2]}
5... g6 {[%clk 0:02:56.4]} 6. f4 {[%clk 0:02:52.2]} 6... Bg7 {[%clk 0:02:55.9]}
7. Nf3 {[%clk 0:02:51.3]} 7... Nf6 {[%clk 0:02:53.1]} 8. Be2 {[%clk 0:02:49]}
8... O-O {[%clk 0:02:52.6]} 9. O-O {[%clk 0:02:47.7]} 9... Nd4 {[%clk
0:02:47.8]} 10. Kh1 {[%clk 0:02:36.9]} 10... Nxe2 {[%clk 0:02:44.7]} 11. Qxe2
{[%clk 0:02:36.3]} 11... c5 {[%clk 0:02:42.6]} 12. b3 {[%clk 0:02:32.5]} 12...
b6 {[%clk 0:02:42]} 13. e5 {[%clk 0:02:21.8]} 13... Ng4 {[%clk 0:02:36.2]} 14.
Nb5 {[%clk 0:01:56.2]} 14... Ba6 {[%clk 0:02:28.4]} 15. a4 {[%clk 0:01:55.1]}
15... Qd7 {[%clk 0:02:27.9]} 16. d4 {[%clk 0:01:52.1]} 16... cxd4 {[%clk
0:02:18.6]} 17. Nfxd4 {[%clk 0:01:45.8]} 17... Nh6 {[%clk 0:01:52.4]} 18. d3
{[%clk 0:01:41.9]} 18... Rfd8 {[%clk 0:01:45.9]} 19. Rd1 {[%clk 0:01:35.7]}
19... Nf5 {[%clk 0:01:34.8]} 20. Nxf5 {[%clk 0:01:29.7]} 20... Qxf5 {[%clk
0:01:34.7]} 21. Ba3 {[%clk 0:01:25.1]} 21... Bxb5 {[%clk 0:01:32.2]} 22. axb5
{[%clk 0:01:23.7]} 22... Rd7 {[%clk 0:01:30.7]} 23. Qe3 {[%clk 0:01:19.2]} 23...
g5 {[%clk 0:01:28]} 24. Qe4 {[%clk 0:01:02.6]} 24... Qxe4 {[%clk 0:01:20.9]} 25.
dxe4 {[%clk 0:01:03.5]} 25... Rxd1+ {[%clk 0:01:12.7]} 26. Rxd1 {[%clk
0:01:04.4]} 26... gxf4 {[%clk 0:01:13]} 27. Bxe7 {[%clk 0:00:59.7]} 27... Bxe5
{[%clk 0:01:12.7]} 28. Rd7 {[%clk 0:01:00.2]} 28... Rc8 {[%clk 0:01:08.4]} 29.
h3 {[%clk 0:00:54.3]} 29... Rc1+ {[%clk 0:01:04.9]} 30. Kh2 {[%clk 0:00:53.8]}
30... f3+ {[%clk 0:01:05.3]} 31. g3 {[%clk 0:00:53.5]} 31... f2 {[%clk
0:01:04.6]} 32. Bf6 {[%clk 0:00:33.2]} 32... Bxf6 {[%clk 0:01:02]} 0-1

[Event "Betsys MČR v online bleskovém šachu 2021"]
[Site "Chess.com"]
[Date "2021.04.17"]
[Round "8"]
[White "Jaja15F"]
[Black "adambelaska"]
[Result "1-0"]
[WhiteElo "1140"]
[BlackElo "1412"]
[TimeControl "180+1"]
[EndTime "10:20:00 PDT"]
[Termination "Uživatel Jaja15F zvítězil matem"]

1. d4 {[%clk 0:03:00.9]} 1... d5 {[%clk 0:02:59]} 2. c4 {[%clk 0:02:56.5]} 2...
e6 {[%clk 0:02:54.4]} 3. Nc3 {[%clk 0:02:53.9]} 3... Nf6 {[%clk 0:02:50.6]} 4.
e3 {[%clk 0:02:52.9]} 4... Nbd7 {[%clk 0:02:45.2]} 5. Nf3 {[%clk 0:02:51.8]}
5... Bb4 {[%clk 0:02:40.6]} 6. Bd2 {[%clk 0:02:50.9]} 6... O-O {[%clk
0:02:30.4]} 7. Bd3 {[%clk 0:02:49.5]} 7... dxc4 {[%clk 0:02:28]} 8. Bxc4 {[%clk
0:02:48.5]} 8... Bxc3 {[%clk 0:02:18.2]} 9. Bxc3 {[%clk 0:02:47.6]} 9... Nd5
{[%clk 0:02:17.6]} 10. Bxd5 {[%clk 0:02:46.7]} 10... exd5 {[%clk 0:02:17.6]} 11.
O-O {[%clk 0:02:45.4]} 11... Nf6 {[%clk 0:02:17.1]} 12. Re1 {[%clk 0:02:40.9]}
12... Bf5 {[%clk 0:02:16.7]} 13. Bb4 {[%clk 0:02:33.3]} 13... Ne4 {[%clk
0:02:11.2]} 14. Bxf8 {[%clk 0:02:29]} 14... Qxf8 {[%clk 0:02:10.5]} 15. Nh4
{[%clk 0:02:20.4]} 15... Bg6 {[%clk 0:02:08.2]} 16. f3 {[%clk 0:02:15.2]} 16...
Ng5 {[%clk 0:02:05]} 17. Nxg6 {[%clk 0:02:11.5]} 17... fxg6 {[%clk 0:02:03.3]}
18. f4 {[%clk 0:02:11]} 18... Ne4 {[%clk 0:02:02.8]} 19. Qb3 {[%clk 0:01:59.6]}
19... c6 {[%clk 0:01:58.6]} 20. Qxb7 {[%clk 0:01:58.2]} 20... Rb8 {[%clk
0:01:57.5]} 21. Qxc6 {[%clk 0:01:54.7]} 21... Nf6 {[%clk 0:01:51.3]} 22. b3
{[%clk 0:01:47.1]} 22... Ne4 {[%clk 0:01:44.4]} 23. Qxd5+ {[%clk 0:01:43.1]}
23... Qf7 {[%clk 0:01:41.7]} 24. Qxe4 {[%clk 0:01:41.8]} 24... Re8 {[%clk
0:01:40.8]} 25. Qd3 {[%clk 0:01:39]} 25... Qe6 {[%clk 0:01:38]} 26. Rac1 {[%clk
0:01:35.8]} 26... Rc8 {[%clk 0:01:36.3]} 27. Rc2 {[%clk 0:01:33.3]} 27... Rxc2
{[%clk 0:01:33.7]} 28. Qxc2 {[%clk 0:01:32.4]} 28... Kf7 {[%clk 0:01:32.7]} 29.
Qc4 {[%clk 0:01:30.4]} 29... a5 {[%clk 0:01:25.3]} 30. Qxe6+ {[%clk 0:01:29.3]}
30... Kxe6 {[%clk 0:01:25]} 31. Rc1 {[%clk 0:01:26.9]} 31... Kd5 {[%clk
0:01:24.4]} 32. Kf2 {[%clk 0:01:24.6]} 32... Ke4 {[%clk 0:01:23.9]} 33. a3
{[%clk 0:01:21]} 33... Kd5 {[%clk 0:01:20.5]} 34. b4 {[%clk 0:01:20.1]} 34...
axb4 {[%clk 0:01:20.3]} 35. axb4 {[%clk 0:01:19.6]} 35... Kd6 {[%clk 0:01:20.2]}
36. b5 {[%clk 0:01:19.6]} 36... Kd5 {[%clk 0:01:20.3]} 37. b6 {[%clk 0:01:19.6]}
37... Ke4 {[%clk 0:01:18.9]} 38. b7 {[%clk 0:01:18.2]} 38... Kd3 {[%clk
0:01:19.4]} 39. b8=Q {[%clk 0:01:17.9]} 39... Kd2 {[%clk 0:01:20.3]} 40. Qb2+
{[%clk 0:01:15.8]} 40... Kd3 {[%clk 0:01:19.5]} 41. Rc3+ {[%clk 0:01:12.3]}
41... Ke4 {[%clk 0:01:18.9]} 42. Qc2+ {[%clk 0:01:11.3]} 42... Kd5 {[%clk
0:01:17.9]} 43. Rc5+ {[%clk 0:01:08.5]} 43... Ke6 {[%clk 0:01:17.1]} 44. Qe4+
{[%clk 0:01:07.5]} 44... Kf6 {[%clk 0:01:16.5]} 45. Qe5+ {[%clk 0:01:02]} 45...
Kf7 {[%clk 0:01:14.2]} 46. Rc7+ {[%clk 0:01:01.1]} 46... Kg8 {[%clk 0:01:13.2]}
47. Qe8# {[%clk 0:00:58.5]} 1-0

[Event "Betsys MČR v online bleskovém šachu 2021"]
[Site "Chess.com"]
[Date "2021.04.17"]
[Round "8"]
[White "Trickov"]
[Black "kubaches123"]
[Result "1-0"]
[WhiteElo "2400"]
[BlackElo "2081"]
[TimeControl "180+1"]
[EndTime "10:20:03 PDT"]
[Termination "Uživatel Trickov zvítězil po vzdání soupeře"]

1. d4 {[%clk 0:02:58.7]} 1... Nf6 {[%clk 0:02:59.9]} 2. Nf3 {[%clk 0:02:58.3]}
2... e6 {[%clk 0:03:00]} 3. g3 {[%clk 0:02:55.7]} 3... d5 {[%clk 0:02:53.7]} 4.
Bg2 {[%clk 0:02:50.4]} 4... c5 {[%clk 0:02:51.8]} 5. O-O {[%clk 0:02:47.1]} 5...
Nc6 {[%clk 0:02:51.5]} 6. c4 {[%clk 0:02:42.4]} 6... dxc4 {[%clk 0:02:47.9]} 7.
Qa4 {[%clk 0:02:37.7]} 7... Bd7 {[%clk 0:02:26.4]} 8. Qxc4 {[%clk 0:02:33]} 8...
cxd4 {[%clk 0:02:24.2]} 9. Nxd4 {[%clk 0:02:28]} 9... Rc8 {[%clk 0:02:24.4]} 10.
Nc3 {[%clk 0:02:19.9]} 10... Be7 {[%clk 0:02:15.9]} 11. Rd1 {[%clk 0:02:15.9]}
11... Nxd4 {[%clk 0:01:04.8]} 12. Qxd4 {[%clk 0:02:13.9]} 12... O-O {[%clk
0:00:35.8]} 13. Qxa7 {[%clk 0:02:06.4]} 13... Qc7 {[%clk 0:00:14.7]} 14. Qxb7
{[%clk 0:01:53.6]} 14... Qxb7 {[%clk 0:00:13.9]} 15. Bxb7 {[%clk 0:01:52.2]}
15... Rb8 {[%clk 0:00:14.8]} 16. Bf3 {[%clk 0:01:44.5]} 16... h6 {[%clk
0:00:14.4]} 17. a4 {[%clk 0:01:38.8]} 17... Rfc8 {[%clk 0:00:13.9]} 18. a5
{[%clk 0:01:33.7]} 18... Bb4 {[%clk 0:00:09.3]} 19. Bf4 {[%clk 0:01:22.2]} 19...
Ra8 {[%clk 0:00:01.8]} 20. Bxa8 {[%clk 0:01:16.4]} 20... Rxa8 {[%clk 0:00:02.7]}
21. a6 {[%clk 0:01:13.9]} 21... Bxc3 {[%clk 0:00:02.9]} 22. bxc3 {[%clk
0:01:11.8]} 22... Nd5 {[%clk 0:00:03.5]} 23. c4 {[%clk 0:01:09.7]} 23... Nxf4
{[%clk 0:00:03.4]} 24. gxf4 {[%clk 0:01:08.1]} 24... Bc6 {[%clk 0:00:02.9]} 25.
a7 {[%clk 0:01:07.5]} 1-0

[Event "Betsys MČR v online bleskovém šachu 2021"]
[Site "Chess.com"]
[Date "2021.04.17"]
[Round "8"]
[White "Bartusman"]
[Black "masterofbuzkashi"]
[Result "1-0"]
[WhiteElo "1984"]
[BlackElo "2230"]
[TimeControl "180+1"]
[EndTime "10:20:05 PDT"]
[Termination "Uživatel Bartusman zvítězil po vzdání soupeře"]

1. e4 {[%clk 0:03:00.9]} 1... c5 {[%clk 0:02:53.2]} 2. Nf3 {[%clk 0:03:00.7]}
2... Nc6 {[%clk 0:02:53.5]} 3. b4 {[%clk 0:03:00.5]} 3... cxb4 {[%clk
0:02:52.9]} 4. d4 {[%clk 0:03:00.6]} 4... d5 {[%clk 0:02:52]} 5. exd5 {[%clk
0:03:01.1]} 5... Qxd5 {[%clk 0:02:51.4]} 6. c4 {[%clk 0:03:01.6]} 6... bxc3
{[%clk 0:02:49.9]} 7. Nxc3 {[%clk 0:03:02.1]} 7... Qd8 {[%clk 0:02:50]} 8. d5
{[%clk 0:03:02.1]} 8... Nb8 {[%clk 0:02:49.7]} 9. Bc4 {[%clk 0:03:02]} 9... Nf6
{[%clk 0:02:48.8]} 10. O-O {[%clk 0:03:00.9]} 10... g6 {[%clk 0:02:49]} 11. Re1
{[%clk 0:03:01.2]} 11... Bg7 {[%clk 0:02:49.2]} 12. Ba3 {[%clk 0:03:01.7]} 12...
Bf8 {[%clk 0:02:34.9]} 13. Qd4 {[%clk 0:02:44]} 13... Nbd7 {[%clk 0:02:33.3]}
14. Ng5 {[%clk 0:02:38.8]} 14... Qb6 {[%clk 0:02:28.8]} 15. Qf4 {[%clk
0:01:57.3]} 15... Qa5 {[%clk 0:01:54.2]} 16. Nb5 {[%clk 0:01:55.2]} 16... h6
{[%clk 0:01:03.7]} 17. Nc7+ {[%clk 0:01:36.3]} 17... Qxc7 {[%clk 0:01:01.2]} 18.
Qxc7 {[%clk 0:01:36.2]} 18... hxg5 {[%clk 0:01:01.4]} 19. Re2 {[%clk 0:00:57.6]}
19... Bh6 {[%clk 0:00:30.3]} 20. Rxe7+ {[%clk 0:00:55.6]} 20... Kf8 {[%clk
0:00:30.5]} 21. Rxd7+ {[%clk 0:00:44.4]} 21... Kg7 {[%clk 0:00:29.3]} 22. Rxf7+
{[%clk 0:00:43.8]} 22... Kg8 {[%clk 0:00:28.4]} 23. d6 {[%clk 0:00:40.4]} 1-0

[Event "Betsys MČR v online bleskovém šachu 2021"]
[Site "Chess.com"]
[Date "2021.04.17"]
[Round "8"]
[White "veronikam"]
[Black "Tah_na_g12"]
[Result "1-0"]
[WhiteElo "1508"]
[BlackElo "1179"]
[TimeControl "180+1"]
[EndTime "10:20:06 PDT"]
[Termination "Uživatel veronikam zvítězil po vzdání soupeře"]

1. e4 {[%clk 0:03:00.9]} 1... e5 {[%clk 0:02:59]} 2. Nf3 {[%clk 0:03:00.1]} 2...
Nc6 {[%clk 0:02:57]} 3. Bb5 {[%clk 0:02:59.6]} 3... a6 {[%clk 0:02:54.8]} 4. Ba4
{[%clk 0:02:59.7]} 4... Nf6 {[%clk 0:02:52]} 5. O-O {[%clk 0:02:58.8]} 5... Bc5
{[%clk 0:02:50.5]} 6. d4 {[%clk 0:02:40.6]} 6... exd4 {[%clk 0:02:48.7]} 7. e5
{[%clk 0:02:40.6]} 7... Nd5 {[%clk 0:02:41]} 8. Bxc6 {[%clk 0:02:35]} 8... dxc6
{[%clk 0:02:40]} 9. Nxd4 {[%clk 0:02:35]} 9... Nb6 {[%clk 0:02:32.9]} 10. Nb3
{[%clk 0:02:32.5]} 10... Qxd1 {[%clk 0:02:30.3]} 11. Rxd1 {[%clk 0:02:31.9]}
11... Be7 {[%clk 0:02:29]} 12. Nc3 {[%clk 0:02:31.5]} 12... O-O {[%clk
0:02:28.2]} 13. Bf4 {[%clk 0:02:29.9]} 13... Be6 {[%clk 0:02:27.9]} 14. Nd4
{[%clk 0:02:28.4]} 14... Rad8 {[%clk 0:02:23.5]} 15. Nxe6 {[%clk 0:02:23.8]}
15... fxe6 {[%clk 0:02:24.4]} 16. Bg3 {[%clk 0:02:19.8]} 16... Bc5 {[%clk
0:02:19.8]} 17. Ne4 {[%clk 0:02:17.8]} 17... Bd4 {[%clk 0:02:14.3]} 18. c3
{[%clk 0:02:12]} 18... Bxe5 {[%clk 0:01:53.3]} 19. Bxe5 {[%clk 0:02:11.3]} 19...
Rd5 {[%clk 0:01:44.3]} 20. Bxc7 {[%clk 0:02:03.5]} 20... Nc4 {[%clk 0:01:35]}
21. b3 {[%clk 0:01:58]} 21... Ne5 {[%clk 0:01:30]} 22. Rxd5 {[%clk 0:01:54.6]}
22... exd5 {[%clk 0:01:30.9]} 23. Bxe5 {[%clk 0:01:53.4]} 23... dxe4 {[%clk
0:01:26.8]} 24. Re1 {[%clk 0:01:52.8]} 24... Re8 {[%clk 0:01:25.7]} 25. Rxe4
{[%clk 0:01:52]} 25... Kf7 {[%clk 0:01:23.2]} 26. f4 {[%clk 0:01:43.2]} 26...
Rd8 {[%clk 0:01:21.4]} 27. Bd4 {[%clk 0:01:36.9]} 27... g6 {[%clk 0:01:17.5]}
28. Kf2 {[%clk 0:01:35.6]} 28... Re8 {[%clk 0:01:15.7]} 29. Rxe8 {[%clk
0:01:33.7]} 29... Kxe8 {[%clk 0:01:16.6]} 30. Kf3 {[%clk 0:01:33.5]} 30... Kf7
{[%clk 0:01:16.4]} 31. Ke4 {[%clk 0:01:32.1]} 31... Ke6 {[%clk 0:01:16.6]} 32.
g4 {[%clk 0:01:30.6]} 32... h5 {[%clk 0:01:07.1]} 33. gxh5 {[%clk 0:01:27.9]}
33... gxh5 {[%clk 0:01:08]} 34. f5+ {[%clk 0:01:27.8]} 34... Kf7 {[%clk
0:01:05.9]} 35. Kf4 {[%clk 0:01:27.8]} 35... b5 {[%clk 0:01:02.9]} 36. Kg5
{[%clk 0:01:27.1]} 36... a5 {[%clk 0:01:00.7]} 37. Kxh5 {[%clk 0:01:25.4]} 37...
a4 {[%clk 0:00:59.5]} 38. Kg5 {[%clk 0:01:23.3]} 38... axb3 {[%clk 0:00:57.7]}
39. axb3 {[%clk 0:01:23.1]} 39... Ke7 {[%clk 0:00:55.5]} 40. Kg6 {[%clk
0:01:20.6]} 40... Kd6 {[%clk 0:00:54.8]} 41. f6 {[%clk 0:01:19.8]} 41... Kd5
{[%clk 0:00:52.4]} 42. f7 {[%clk 0:01:19.7]} 42... c5 {[%clk 0:00:52.1]} 43.
Bxc5 {[%clk 0:01:17.9]} 43... Kxc5 {[%clk 0:00:51.2]} 44. f8=Q+ {[%clk
0:01:17.3]} 44... Kd5 {[%clk 0:00:49.6]} 45. Qd8+ {[%clk 0:01:16.6]} 45... Ke4
{[%clk 0:00:48.5]} 46. h4 {[%clk 0:01:15.8]} 46... Kf4 {[%clk 0:00:45.8]} 47. h5
{[%clk 0:01:15.7]} 1-0